bitfinex-derivatives/quotes_ETHF0:USTF0_20251204
["timestamp","ask_amount","ask_price","bid_price","bid_amount"]
[1764869628374,0.00338232,3153.5,3153.4,1.4455]
[1764869628574,0.00338232,3153.5,3153.4,2.8956]
[1764869630178,0.00338232,3153.5,3153.4,3.05411]
[1764869634874,0.00475391,3153.7,3153.6,3.0541]
[1764869635076,0.00475391,3153.7,3153.6,6.2619]
[1764869635277,0.00475391,3153.7,3153.6,3.0541]
[1764869635473,2.866,3153.3,3153.2,0.00363062]
[1764869635767,2.866,3153.1,3153.0,0.00475391]
[1764869636777,2.866,3153.1,3153.0,0.00804579]
[1764869637379,2.866,3152.5,3152.4,0.15856]
[1764869637577,0.8047,3153.0,3152.4,3.05416]
[1764869638371,0.8047,3153.0,3152.4,3.0576909]
[1764869639975,3.6707,3152.5,3151.6,0.25801578]
[1764869640177,2.68588374,3151.4,3150.4,1.646e-05]
[1764869640377,3.2078,3150.6,3150.5,0.8492]
[1764869640575,3.2078,3150.6,3150.5,3.7448]
[1764869640777,3.2078,3151.0,3150.5,0.8492]
[1764869641076,3.21018694,3151.0,3150.5,0.00273983]
[1764869641379,44.01018694,3151.0,3150.9,1.4455]
[1764869641584,3.21018694,3151.0,3150.9,2.8956]
[1764869641773,3.2078,3152.1,3151.2,0.8492]
[1764869642170,3.2078,3152.1,3151.3,3.2078]
[1764869642370,3.2078,3152.5,3151.8,4.057]
[1764869642775,3.2078,3152.5,3151.8,4.06175391]
[1764869642776,3.2148883,3152.5,3151.8,4.06175391]
[1764869643271,3.2148883,3152.5,3151.8,0.85395391]
[1764869643677,3.2148883,3152.5,3151.8,5.6131539]
[1764869644277,0.0070883,3152.5,3151.8,5.6131539]
[1764869644476,0.0070883,3152.5,3152.4,7.5747]
[1764869644868,3.2078,3153.3,3153.2,2.7455]
[1764869645270,3.2078,3153.3,3153.0,1.6214]
[1764869645484,2.839,3153.0,3152.9,3.2078]
[1764869645673,3.2078,3153.3,3152.9,6.17529999]
[1764869645874,3.21190897,3153.3,3153.2,2.7455]
[1764869647075,3.21190897,3153.3,3153.2,15.4975]
[1764869647280,0.00410897,3153.3,3153.2,15.4975]
[1764869647877,3.2078,3154.2,3153.3,2.7455]
[1764869648077,3.2078,3154.7,3154.2,1.6214]
[1764869648275,3.2078,3154.7,3154.5,1.4161]
[1764869648480,3.2078,3154.7,3154.2,1.6214]
[1764869648679,3.2078,3154.7,3154.2,6.38059999]
[1764869648981,3.21178082,3154.7,3154.2,6.38059999]
[1764869649184,0.00398082,3154.7,3154.6,1.4161]
[1764869649377,0.15835,3156.6,3154.6,1.4161]
[1764869649378,3.2078,3155.7,3154.7,2.7455]
[1764869649580,3.2078,3155.7,3155.1,3.2078]
[1764869649880,2.839,3155.2,3154.7,3.2078]
[1764869650381,2.84241375,3155.2,3154.8,4.75919999]
[1764869650688,2.84241375,3155.2,3154.7,3.2078]
[1764869650880,1.43341375,3155.2,3154.7,3.2078]
[1764869651582,0.00341375,3155.2,3155.1,2.7455]
[1764869651787,0.00341375,3155.2,3155.1,5.9533]
[1764869652280,2.84241375,3155.2,3155.1,3.2078]
[1764869652481,2.84241375,3155.2,3155.1,7.96699999]
[1764869652482,0.00341375,3155.2,3155.1,7.96699999]
[1764869652681,0.00341375,3155.2,3155.1,4.75919999]
[1764869653389,0.00341375,3155.2,3155.1,10.71249999]
[1764869654083,3.2078,3155.7,3155.4,1.6214]
[1764869654284,3.2078,3157.1,3155.8,0.15839]
[1764869654596,3.2078,3157.1,3156.3,3.2078]
[1764869654885,2.2303996,3158.5,3156.0,1.6214]
[1764869654886,3.2078,3157.7,3157.0,2.7455]
[1764869655087,3.2078,3157.7,3157.0,2.7535527]
[1764869655088,3.21140406,3157.7,3157.0,2.7535527]
[1764869655287,3.21615797,3157.7,3157.0,2.7535527]
[1764869656095,3.21615797,3157.7,3157.0,1.4241527]
[1764869656392,1.43,3157.1,3157.0,0.0080527]
[1764869656584,3.21615797,3157.7,3157.0,0.0080527]
[1764869656984,3.21615797,3157.7,3157.0,4.76725269]
[1764869657383,3.21615797,3157.7,3157.0,0.0080527]
[1764869658197,1.43,3157.1,3157.0,0.0080527]
[1764869658499,0.00835797,3157.7,3157.0,4.76725269]
[1764869658795,0.00835797,3157.7,3157.0,0.0080527]
[1764869658996,0.00835797,3157.7,3157.5,3.2078]
[1764869659187,0.00835797,3157.7,3157.6,2.7455]
[1764869659394,0.00835797,3157.7,3157.5,3.2078]
[1764869659395,1.43,3157.6,3157.5,3.2078]
[1764869660096,0.00835797,3157.7,3157.5,3.2078]
[1764869661093,0.00835797,3157.7,3157.6,1.4161]
[1764869661896,0.00835797,3157.7,3157.5,3.2078]
[1764869662195,1.43,3157.6,3157.5,3.2078]
[1764869662393,0.00835797,3157.7,3157.6,4.75919999]
[1764869662806,0.00835797,3157.7,3157.6,6.17529999]
[1764869662994,0.00835797,3157.7,3157.6,4.75919999]
[1764869663190,0.00835797,3157.7,3157.1,10.896]
[1764869663191,2.839,3157.6,3157.1,10.896]
[1764869663493,1.43,3157.6,3157.2,1.6214]
[1764869663699,0.00835797,3157.7,3157.6,2.7455]
[1764869664097,0.00835797,3157.7,3157.2,1.6214]
[1764869664802,0.00835797,3157.7,3157.6,2.7455]
[1764869665500,3.2078,3158.6,3158.5,1.4161]
[1764869666297,0.00282322,3158.6,3158.5,4.6239]
[1764869666501,0.00282322,3158.6,3158.5,5.9533]
[1764869666697,40.8,3159.5,3158.8,2.7455]
[1764869666901,40.8,3159.5,3159.0,1.6214]
[1764869667599,40.8,3159.5,3159.4,1.4161]
[1764869667805,2.84144338,3159.5,3159.4,0.00297959]
[1764869668400,6.04924338,3159.5,3159.4,0.00297959]
[1764869668705,4.64024338,3159.5,3159.4,4.76217958]
[1764869669104,3.21024338,3159.5,3159.4,4.76217958]
[1764869669304,4.64024338,3159.5,3159.4,4.76217958]
[1764869669805,6.04924338,3159.5,3159.4,0.00297959]
[1764869670000,2.839,3159.2,3159.1,0.00475391]
[1764869670393,2.839,3158.7,3158.6,5.338]
[1764869671002,2.839,3158.7,3158.6,5.34033049]
[1764869671203,8.839,3158.7,3158.6,0.00233049]
[1764869671605,2.839,3158.7,3158.6,0.00233049]
[1764869671801,2.839,3158.4,3158.3,0.00475391]
[1764869672005,2.839,3158.4,3158.0,3.2078]
[1764869672006,2.839,3158.1,3158.0,3.2078]
[1764869672504,2.839,3158.1,3158.0,7.96699999]
[1764869672900,2.839,3158.1,3158.0,7.97106561]
[1764869673100,6.92006929,3158.1,3158.0,4.76326561]
[1764869673499,12.92006929,3158.1,3158.0,0.00406562]
[1764869673704,2.839,3157.8,3157.7,0.00475391]
[1764869673903,3.71226929,3157.8,3157.7,0.00475391]
[1764869674202,0.15826,3158.5,3157.8,1.5061]
[1764869674409,4.8805997,3158.6,3157.8,1.5061]
[1764869674410,0.87581677,3158.4,3157.8,1.5061]
[1764869674706,3.2078,3158.6,3157.8,1.50854519]
[1764869674707,0.87581677,3158.3,3157.8,1.50854519]
[1764869674908,0.87581677,3158.2,3158.1,2.5215]
[1764869675208,0.87581677,3158.2,3157.8,1.50854519]
[1764869675509,4.8805997,3158.6,3158.0,2.5215]
[1764869675510,0.87581677,3158.1,3158.0,2.5215]
[1764869675810,0.87581677,3158.1,3158.0,5.2899]
[1764869676199,0.87581677,3158.1,3157.8,1.50854519]
[1764869676400,1.9574,3157.9,3157.8,0.00244519]
[1764869676695,2.83321677,3157.9,3157.8,0.00244519]
[1764869677101,0.87581677,3157.9,3157.8,4.03004519]
[1764869677802,0.87581677,3157.9,3157.8,6.79844519]
[1764869678307,0.87581677,3157.9,3157.8,11.55764518]
[1764869679309,2.54861647,3157.9,3157.8,11.55764518]
[1764869679507,1.65868686,3158.1,3158.0,2.5215]
[1764869679707,1.65868686,3158.1,3158.0,5.2899]
[1764869679906,0.3249,3157.8,3154.2,1.5061]
[1764869680206,2.68588374,3155.9,3154.8,1.66454]
[1764869680406,3.2078,3156.1,3155.1,3.2078]
[1764869680602,40.8,3156.8,3154.8,1.66454]
[1764869680603,3.2078,3156.7,3155.8,3.2078]
[1764869680798,0.33426206,3156.6,3155.8,3.2078]
[1764869681000,3.2078,3156.3,3155.9,6.42035391]
[1764869681604,0.00475391,3156.5,3155.9,6.42035391]
[1764869683108,0.00475391,3156.5,3156.3,1.7619]
[1764869683499,0.00475391,3156.5,3156.3,4.9697]
[1764869683709,2.2303996,3158.0,3156.3,4.9697]
[1764869683710,3.2078,3158.3,3157.0,1.7619]
[1764869684007,0.33520063,3158.2,3157.2,3.2078]
[1764869684213,3.2078,3158.3,3157.2,3.36611]
[1764869684509,0.33546169,3158.2,3157.2,3.36611]
[1764869684705,0.00475391,3158.0,3157.4,0.00475391]
[1764869685110,0.00475391,3158.0,3157.7,1.7619]
[1764869685414,0.00475391,3158.0,3157.7,4.9697]
[1764869690519,6.0189,3157.5,3157.4,0.00475391]
[1764869690711,3.21255391,3158.0,3157.0,4.9697]
[1764869691022,3.21255391,3158.0,3157.9,3.02]
[1764869691219,3.54841459,3158.0,3157.9,3.02]
[1764869691515,4.05642664,3158.0,3157.9,5.998]
[1764869692119,4.05642664,3158.0,3157.9,3.02]
[1764869692817,3.0473,3157.7,3157.6,0.00475391]
[1764869693017,6.86277273,3157.7,3157.6,0.00475391]
[1764869693413,7.20024608,3157.7,3157.6,0.00475391]
[1764869697121,4.22864608,3157.7,3157.6,0.00475391]
[1764869697614,1.18134608,3157.7,3157.6,0.00475391]
[1764869698320,4.22864608,3157.7,3157.6,0.00475391]
[1764869698724,7.20024608,3157.7,3157.6,0.00475391]
[1764869699220,7.20024608,3157.7,3157.0,1.7619]
[1764869699409,1.18134608,3157.6,3157.0,1.7619]
[1764869699616,0.00475391,3158.0,3157.9,5.998]
[1764869699818,0.82336316,3158.0,3157.9,5.998]
[1764869700322,4.20893419,3158.0,3157.8,1.7619]
[1764869700523,1.15697436,3157.9,3157.8,1.7619]
[1764869700715,1.15697436,3157.9,3157.8,4.7819]
[1764869701020,0.81860925,3157.9,3157.8,7.7599]
[1764869701421,1.68727274,3158.6,3158.5,5.998]
[1764869701716,1.5838,3160.2,3159.1,5.998]
[1764869701717,3.2078,3159.2,3159.1,5.998]
[1764869702519,3.2106701,3159.2,3159.1,6.00067043]
[1764869702722,0.0028701,3159.2,3159.1,3.02267043]
[1764869703026,8.4292395,3159.2,3159.1,0.00267043]
[1764869703215,6.0189,3158.9,3158.1,3.2078]
[1764869703416,2.4074694,3158.8,3158.1,3.2078]
[1764869703920,40.8,3158.7,3158.1,3.2078]
[1764869704320,40.8,3158.7,3158.1,3.21623253]
[1764869705419,6.0721,3158.2,3158.1,3.21623253]
[1764869705629,6.0721,3158.2,3158.1,0.00843253]
[1764869707225,3.0473,3158.2,3158.1,0.00843253]
[1764869707728,6.0721,3158.2,3158.1,0.00843253]
[1764869708018,9.2799,3158.2,3158.1,0.00843253]
[1764869709527,3.2078,3158.2,3158.1,2.97093253]
[1764869709727,3.2078,3158.2,3158.1,6.02783253]
[1764869711129,3.2078,3158.6,3158.5,6.0194]
[1764869711428,0.0028701,3159.2,3159.1,2.9625]
[1764869711617,0.0028701,3159.2,3159.1,6.1703]
[1764869712923,0.0028701,3159.2,3158.7,3.2078]
[1764869712924,8.3653395,3159.2,3158.7,3.2078]
[1764869713730,5.955,3158.8,3158.7,3.2078]
[1764869713933,2.9302,3158.8,3158.7,3.2078]
[1764869714125,8.3624694,3158.8,3158.7,3.2078]
[1764869714325,5.955,3158.3,3158.2,3.2078]
[1764869714631,8.3624694,3158.3,3158.2,3.2078]
[1764869715822,9.17099562,3158.3,3158.2,3.2078]
[1764869716232,5.955,3157.8,3157.7,3.2078]
[1764869717228,7.7079,3157.8,3157.7,0.00379985]
[1764869717433,8.51624576,3157.8,3157.7,0.00379985]
[1764869717637,8.51610916,3157.8,3157.7,0.00379985]
[1764869717832,40.8,3157.9,3157.7,0.00379985]
[1764869718028,7.7079,3157.8,3157.7,0.00379985]
[1764869718328,3.2078,3158.4,3157.8,1.7883]
[1764869718527,4.1603694,3159.0,3157.8,1.7883]
[1764869718528,3.2078,3158.9,3158.1,3.2078]
[1764869718729,41.93347638,3158.8,3158.1,3.2078]
[1764869718928,0.80831197,3158.7,3158.1,3.2078]
[1764869720827,3.9031993,3161.5,3160.2,0.3639]
[1764869721128,3.9031993,3161.5,3160.5,3.2078]
[1764869721129,1.7529,3161.4,3160.5,3.2078]
[1764869721334,2.23802361,3161.2,3160.9,3.2078]
[1764869721832,2.4074694,3161.1,3160.9,3.21065249]
[1764869722227,6.0,3161.0,3160.7,0.00474622]
[1764869722423,8.4074694,3161.1,3160.5,3.2078]
[1764869722629,1.1824,3160.5,3160.0,6.8188]
[1764869722827,2.4074694,3160.2,3160.0,3.2078]
[1764869723332,2.4074694,3160.2,3160.0,3.21076247]
[1764869723636,40.8,3160.4,3160.0,3.21076247]
[1764869723834,2.4074694,3160.1,3160.0,3.21076247]
[1764869724037,2.4074694,3160.1,3160.0,0.00296247]
[1764869724240,4.64549301,3160.1,3160.0,0.00296247]
[1764869726239,2.23802361,3160.1,3160.0,0.00296247]
[1764869726435,3.2078,3161.3,3160.1,0.15817]
[1764869726637,3.2078,3161.3,3160.5,3.2078]
[1764869726638,2.23802361,3161.0,3160.5,3.2078]
[1764869726841,2.4074694,3160.8,3160.5,3.2078]
[1764869727540,40.8,3160.9,3160.5,3.2078]
[1764869728742,0.00379751,3161.2,3160.5,4.9961]
[1764869728940,0.00379751,3161.2,3161.1,3.2078]
[1764869729339,2.24182112,3161.2,3161.1,3.2078]
[1764869731435,8.19682112,3161.2,3161.1,3.2078]
[1764869731644,8.19682112,3161.2,3160.6,3.2078]
[1764869731836,2.9302,3160.7,3160.6,3.2078]
[1764869732032,2.24182112,3161.2,3160.6,3.2078]
[1764869732239,2.23802361,3160.7,3160.6,9.2272]
[1764869732645,0.00379751,3161.2,3161.1,6.0194]
[1764869732838,0.00379751,3161.2,3161.1,9.2272]
[1764869733034,2.24182112,3161.2,3161.1,9.2272]
[1764869733243,0.00379751,3161.2,3161.1,9.2272]
[1764869734546,0.00379751,3161.2,3161.1,15.38532]
[1764869735449,0.00474622,3161.4,3161.3,5.9628]
[1764869735643,4.622e-05,3161.4,3161.3,5.9628]
[1764869735948,1.7529,3162.6,3161.3,12.12091]
[1764869735949,3.2078,3162.6,3161.3,12.12091]
[1764869736139,14.0614,3163.3,3162.5,5.9628]
[1764869736140,3.2078,3163.1,3162.5,5.9628]
[1764869736340,7.1585,3162.6,3162.5,0.00305264]
[1764869736545,2.4074694,3162.8,3162.0,6.212]
[1764869736741,0.00474622,3162.7,3162.1,0.00474622]
[1764869737145,0.00474622,3162.7,3162.4,3.2078]
[1764869737449,2.23802361,3162.6,3162.5,3.0042]
[1764869737648,2.23802361,3162.6,3162.4,3.21040134]
[1764869738244,2.23802361,3162.5,3162.4,3.21040134]
[1764869738842,2.23802361,3162.5,3162.4,6.21460134]
[1764869739042,5.08302361,3162.5,3162.4,3.21040134]
[1764869739246,8.13802361,3162.5,3162.4,3.21040134]
[1764869739444,10.54549301,3162.5,3162.4,3.21040134]
[1764869739748,10.54549301,3162.5,3160.6,13.7984694]
[1764869739749,5.9,3162.0,3161.5,3.2078]
[1764869740550,5.9,3162.0,3161.5,3.21188928]
[1764869741147,2.23802361,3162.5,3161.5,3.21188928]
[1764869741352,2.23802361,3162.5,3161.9,3.2078]
[1764869741953,5.9,3162.0,3161.9,3.2078]
[1764869742154,3.2078,3162.4,3161.9,3.2078]
[1764869744257,0.00474622,3162.7,3162.6,8.8358]
[1764869744550,0.00474622,3162.7,3162.3,3.2078]
[1764869744757,6.898,3162.4,3162.3,3.2078]
[1764869745258,0.00377357,3163.1,3161.9,3.2078]
[1764869745453,1.0784212,3163.8,3163.4,3.2078]
[1764869745651,4.7976995,3165.0,3163.4,3.2078]
[1764869745652,2.4074694,3164.3,3163.4,3.2078]
[1764869745848,40.8,3164.2,3163.9,3.2078]
[1764869746053,3.2078,3163.5,3163.4,3.2078]
[1764869746452,3.21067428,3163.5,3163.4,3.21050488]
[1764869748052,44.01067428,3163.5,3163.4,3.21050488]
[1764869750656,0.00287428,3163.5,3163.4,10.07190488]
[1764869751047,3.21067428,3163.5,3163.4,10.07190488]
[1764869751453,10.10867428,3163.5,3163.4,3.21050488]
[1764869751651,6.71527428,3163.5,3163.4,3.21050488]
[1764869752259,3.21067428,3163.5,3163.4,6.68570488]
[1764869752450,3.21067428,3163.5,3163.4,3.21050488]
[1764869752650,3.21067428,3163.5,3163.4,6.68570488]
[1764869752850,3.21067428,3163.5,3163.4,3.21050488]
[1764869754154,3.21067428,3163.5,3163.4,6.68570488]
[1764869754549,3.21067428,3163.5,3163.4,3.21050488]
[1764869754757,3.21067428,3163.5,3163.4,6.68570488]
[1764869755455,10.10867428,3163.5,3163.4,3.21050488]
[1764869755956,10.85457715,3163.5,3163.4,3.21050488]
[1764869756360,51.65457715,3163.5,3163.4,3.21050488]
[1764869758363,3.2078,3163.5,3163.4,10.07190488]
[1764869758661,3.2078,3163.5,3163.4,6.68570488]
[1764869759162,40.8,3163.7,3163.4,10.07190488]
[1764869759463,3.21042574,3163.7,3163.4,3.21050488]
[1764869760464,44.01042574,3163.7,3163.4,3.21050488]
[1764869760656,3.5046,3163.5,3163.4,3.21050488]
[1764869760859,44.01042574,3163.7,3163.4,3.21050488]
[1764869761062,6.71502574,3163.7,3163.4,3.21050488]
[1764869761562,44.01042574,3163.7,3163.4,3.21050488]
[1764869762664,0.00262574,3163.7,3163.6,6.8614]
[1764869763158,3.21042574,3163.7,3163.6,6.8614]
[1764869765061,1.67376105,3164.9,3164.6,3.2491]
[1764869765362,1.67376105,3164.9,3163.8,2.2893]
[1764869765363,1.67376105,3165.6,3164.8,3.2078]
[1764869765567,5.03312608,3166.0,3165.3,3.2078]
[1764869765568,6.7344,3165.4,3165.3,3.2078]
[1764869766055,6.7377629,3165.4,3165.3,3.2078]
[1764869766853,6.7344,3165.1,3165.0,3.21253835]
[1764869767056,3.2888,3165.1,3165.0,3.21253835]
[1764869767368,6.4966,3165.1,3165.0,3.21253835]
[1764869767556,3.2078,3165.4,3165.3,6.7359]
[1764869767756,3.2078,3165.4,3165.3,3.2491]
[1764869768264,3.2078,3165.4,3165.3,6.7359]
[1764869768666,3.21077032,3165.4,3165.3,6.7359]
[1764869768968,6.49957032,3165.4,3165.0,5.50183835]
[1764869769162,3.21077032,3165.4,3165.3,6.7359]
[1764869771361,0.00473835,3165.7,3165.6,6.7359]
[1764869771563,0.00473835,3165.7,3165.6,9.0252]
[1764869771763,3.21253835,3165.7,3165.6,9.0252]
[1764869771963,3.95819995,3165.7,3165.6,9.0252]
[1764869772163,3.21253835,3165.7,3165.6,9.0252]
[1764869772364,3.21516305,3165.7,3165.6,9.0252]
[1764869772565,0.01369627,3165.7,3165.6,9.0252]
[1764869773065,0.74582591,3166.1,3165.6,9.0252]
[1764869773375,0.01369627,3165.7,3165.6,9.0252]
[1764869773561,0.01758816,3165.7,3165.6,12.233]
[1764869773762,0.00388403,3166.0,3165.6,5.4971]
[1764869773967,0.00388403,3166.0,3165.9,6.7359]
[1764869774169,4.03433142,3166.6,3166.2,2.2893]
[1764869774368,1.67376105,3167.2,3166.5,6.4569]
[1764869774574,1.67376105,3167.2,3166.6,3.2491]
[1764869774575,0.01369627,3166.7,3166.6,3.2491]
[1764869774873,0.01747249,3166.7,3166.6,3.25247273]
[1764869775062,6.75187249,3166.7,3166.6,0.00337273]
[1764869775262,7.49727452,3166.7,3166.6,0.00337273]
[1764869775472,4.05167452,3166.7,3166.6,0.00337273]
[1764869775661,4.05167452,3166.7,3166.6,6.73927273]
[1764869775662,0.01747249,3166.7,3166.6,6.73927273]
[1764869776260,0.01747249,3166.7,3166.6,3.25247273]
[1764869776462,0.01747249,3166.7,3166.6,6.73927273]
[1764869777772,6.75187249,3166.7,3166.6,0.00337273]
[1764869778071,6.90971249,3166.7,3166.5,3.2078]
[1764869778265,6.7344,3166.2,3166.1,3.2078]
[1764869778464,0.17531249,3166.7,3166.1,9.9437]
[1764869778768,6.74809627,3166.2,3166.1,3.2078]
[1764869779160,6.74809627,3166.2,3166.1,3.21093399]
[1764869779364,3.30249627,3166.2,3166.1,6.46003399]
[1764869779861,6.74809627,3166.2,3166.1,3.21093399]
[1764869780467,44.10249627,3166.2,3166.1,3.21093399]
[1764869780668,44.10249627,3166.2,3166.1,6.46003399]
[1764869780872,44.10249627,3166.2,3166.1,3.21093399]
[1764869781275,46.27329627,3166.2,3166.1,0.00313399]
[1764869781576,3.2888,3165.9,3165.8,3.25383835]
[1764869781774,6.7344,3165.9,3165.8,0.00473835]
[1764869782473,6.7344,3165.9,3165.8,0.00780884]
[1764869784276,6.7344,3165.4,3165.3,3.2078]
[1764869784977,6.7344,3165.0,3164.9,3.2078]
[1764869785474,6.73913835,3165.3,3165.0,2.2893]
[1764869786280,3.2888,3165.0,3164.9,3.21062208]
[1764869786473,3.45033835,3165.3,3164.9,3.21062208]
[1764869786984,0.00473835,3165.3,3165.0,2.2893]
[1764869787387,0.00473835,3165.3,3165.2,3.2491]
[1764869787879,0.00473835,3165.3,3165.2,6.7359]
[1764869788582,3.29353835,3165.3,3165.0,2.2893]
[1764869788792,3.29353835,3165.3,3164.9,3.21062208]
[1764869788793,6.7344,3165.0,3164.9,3.21062208]
[1764869788981,0.00473835,3165.3,3164.9,9.94652208]
[1764869789582,0.00473835,3165.3,3165.2,3.2491]
[1764869789785,0.00473835,3165.3,3165.2,6.7359]
[1764869792191,3.835e-05,3165.3,3165.2,6.7359]
[1764869795783,3.58823835,3165.3,3165.2,3.2491]
[1764869796094,3.58823835,3165.3,3164.9,3.21062208]
[1764869796095,7.3344,3165.0,3164.9,3.21062208]
[1764869796394,8.08319187,3165.0,3164.9,3.21062208]
[1764869796791,48.88319187,3165.0,3164.9,3.21062208]
[1764869797294,7.3344,3164.7,3164.6,0.00473835]
[1764869797490,0.74879187,3164.7,3164.6,7.15343835]
[1764869797792,0.01369627,3164.7,3164.6,7.15343835]
[1764869798190,0.01369627,3164.7,3164.6,7.15744545]
[1764869799496,9.6605,3164.0,3163.4,3.2078]
[1764869799684,0.74795167,3163.9,3163.4,3.2078]
[1764869800597,0.75124894,3163.9,3163.4,3.21145353]
[1764869801093,7.3344,3163.5,3163.4,3.21145353]
[1764869801292,7.3344,3163.5,3163.4,0.00365353]
[1764869801683,3.5882,3163.5,3163.4,0.00365353]
[1764869802190,7.3344,3163.5,3163.4,0.00365353]
[1764869803093,3.2078,3163.7,3163.4,0.00365353]
[1764869803094,3.2078,3163.7,3163.4,7.15235353]
[1764869803290,0.00329727,3163.9,3163.4,10.36015353]
[1764869803790,40.8,3163.8,3163.4,10.36015353]
[1764869803987,7.3344,3163.5,3163.4,0.00365353]
[1764869806493,48.1344,3163.5,3163.4,0.00365353]
[1764869809489,7.3305,3163.0,3162.9,3.2078]
[1764869810194,7.3305,3162.6,3162.5,3.2078]
[1764869810597,7.34419627,3162.6,3162.5,3.21021832]
[1764869810901,3.60219627,3162.6,3162.5,7.03061832]
[1764869811100,7.34419627,3162.6,3162.5,3.21021832]
[1764869812197,3.60219627,3162.6,3162.5,7.03061832]
[1764869812398,7.34419627,3162.6,3162.5,3.21021832]
[1764869812799,7.3305,3162.3,3162.2,0.00473835]
[1764869813793,7.3305,3162.3,3162.2,0.0077057]
[1764869814599,7.3305,3161.7,3161.1,3.2078]
[1764869814805,3.5885,3161.6,3161.1,3.2078]
[1764869815700,3.59096837,3161.6,3161.1,3.21182114]
[1764869820405,7.3305,3161.2,3161.1,3.21182114]
[1764869820606,7.3305,3161.2,3160.7,3.2078]
[1764869820607,7.3305,3160.8,3160.7,3.2078]
[1764869821005,7.3305,3160.8,3160.2,3.2078]
[1764869821205,3.5885,3160.3,3160.2,3.2078]
[1764869821402,2.40025019,3160.8,3160.2,10.6727]
[1764869821707,0.00474607,3160.8,3160.7,7.4649]
[1764869822399,0.00474607,3160.8,3160.7,7.62304]
[1764869822704,0.00246837,3161.6,3160.8,0.15813]
[1764869823009,0.00246837,3161.6,3160.5,4.66465019]
[1764869823010,0.00246837,3161.6,3161.5,9.7293]
[1764869823203,0.01616464,3161.6,3161.5,9.7293]
[1764869825001,0.01616464,3161.6,3161.0,2.2644]
[1764869825002,7.2761,3161.5,3161.0,5.4722]
[1764869826008,7.2761,3161.5,3161.0,3.2078]
[1764869826201,7.2761,3161.1,3161.0,3.2078]
[1764869826402,0.01616464,3161.6,3161.0,3.2078]
[1764869826709,0.01369627,3161.1,3161.0,10.6366]
[1764869828408,0.01369627,3161.1,3161.0,3.2078]
[1764869828609,0.01369627,3161.1,3161.0,7.0105]
[1764869828804,0.01369627,3161.1,3161.0,10.6366]
[1764869829007,7.28979627,3161.1,3161.0,3.2078]
[1764869829204,3.53259627,3161.1,3161.0,3.2078]
[1764869829399,3.53259627,3161.1,3161.0,10.6366]
[1764869829400,0.01369627,3161.1,3161.0,10.6366]
[1764869831105,3.53259627,3161.1,3161.0,7.0105]
[1764869831301,3.53259627,3161.1,3161.0,10.6366]
[1764869831302,0.01369627,3161.1,3161.0,10.6366]
[1764869834116,0.01369627,3161.1,3161.0,12.8394]
[1764869834919,0.01369627,3161.1,3161.0,12.99753]
[1764869835317,0.00246837,3161.6,3161.5,9.6316]
[1764869838817,3.2078,3162.3,3162.2,7.4288]
[1764869839018,3.2078,3162.7,3162.6,3.8027]
[1764869839221,3.95687803,3162.7,3162.6,3.8027]
[1764869839423,3.95687803,3162.7,3162.6,7.4288]
[1764869839720,3.96094874,3162.7,3162.6,7.43161594]
[1764869839925,11.23704874,3162.7,3162.6,0.00281594]
[1764869840521,11.23704874,3162.7,3162.6,3.80551594]
[1764869841015,11.23704874,3162.7,3162.6,0.00281594]
[1764869841326,11.5543206,3162.7,3162.6,0.00281594]
[1764869841632,11.23704874,3162.7,3162.6,0.00281594]
[1764869843634,7.2761,3162.4,3162.3,0.00474607]
[1764869843822,8.02517803,3162.4,3162.3,0.00474607]
[1764869844524,8.02517803,3162.4,3162.3,0.00799972]
[1764869850032,3.21187071,3162.7,3162.3,3.63409972]
[1764869850230,10.48797071,3162.7,3162.6,3.8027]
[1764869850436,11.23881091,3162.7,3162.6,3.8027]
[1764869851136,11.23881091,3162.7,3162.3,0.00799972]
[1764869851433,11.23881091,3162.7,3162.6,7.4288]
[1764869851434,3.21187071,3162.7,3162.6,7.4288]
[1764869851631,3.96299424,3162.7,3162.6,7.4288]
[1764869852331,7.2761,3162.4,3162.3,0.00799972]
[1764869852835,8.02709556,3162.4,3162.3,0.00799972]
[1764869853428,48.82709556,3162.4,3162.3,0.00799972]
[1764869854237,51.22734575,3162.4,3161.5,2.2028]
[1764869854532,3.2078,3162.0,3161.5,2.2028]
[1764869855331,3.2078,3162.0,3161.5,2.20659725]
[1764869856433,6.7973,3162.0,3161.9,7.3193]
[1764869856640,3.2078,3162.0,3161.9,7.3193]
[1764869856932,40.8,3162.4,3161.9,7.3193]
[1764869857231,40.8,3162.4,3162.3,3.693]
[1764869857437,40.8,3162.4,3162.3,7.3193]
[1764869857930,40.8,3162.4,3162.3,3.693]
[1764869858130,7.19,3161.6,3161.5,0.00379725]
[1764869858445,10.3978,3161.6,3161.5,0.00379725]
[1764869858944,9.0736,3161.5,3160.5,5.4106]
[1764869859135,3.5895,3160.4,3159.9,5.47186239]
[1764869859347,3.5895,3160.4,3159.9,3.2078]
[1764869859733,3.5895,3160.4,3160.0,3.69678872]
[1764869859734,7.19,3160.1,3160.0,3.69678872]
[1764869860042,7.19,3160.1,3160.0,0.00378872]
[1764869867743,6.5129,3159.6,3159.5,6.3054]
[1764869867944,0.9692,3160.0,3159.5,11.2509]
[1764869868147,40.8,3159.9,3159.5,11.2509]
[1764869868638,40.8,3159.9,3159.5,11.25373152]
[1764869868839,40.8,3159.9,3159.8,3.0976]
[1764869869943,40.8,3159.9,3159.5,5.04723152]
[1764869870140,9.7207,3159.6,3159.5,0.00283152]
[1764869870555,6.5129,3159.2,3159.1,3.2078]
[1764869870943,6.5129,3159.2,3159.1,9.4143]
[1764869871249,9.7207,3159.6,3159.5,3.0976]
[1764869871549,9.7207,3159.6,3159.1,6.3054]
[1764869871550,6.5129,3159.2,3159.1,6.3054]
[1764869871753,3.1708,3159.2,3159.1,9.41652099]
[1764869872050,6.3786,3159.6,3159.5,8.0431]
[1764869872837,3.1708,3159.2,3159.1,9.41652099]
[1764869873646,6.5129,3159.2,3159.1,3.21002099]
[1764869874049,6.5129,3159.2,3159.1,6.30762099]
[1764869875046,3.2078,3159.6,3159.1,9.41652099]
[1764869875255,6.3786,3159.6,3159.5,8.0431]
[1764869876847,3.2078,3159.6,3159.5,8.0431]